Workbook

Sheet Init
A2: 2Pi/360= | B2: =2*PI()/360 -> 0.01745329252
A3: step= | B3: 10 | C3: DEZE WAARDE KAN VAN EEN ANDER BLAD KOMEN
B6: 0.6427876097 | C6: 0 | D6: -0.7660444431 | G6: 1 | H6: 0 | I6: 0
A7: A= | B7: 0 | C7: 1 | D7: 0 | F7: Id= | G7: 0 | H7: 1 | I7: 0
B8: 0.7660444431 | C8: 0 | D8: 0.6427876097 | G8: 0 | H8: 0 | I8: 1
B11: =COS(step*Init!$B$2) -> 0.984807753 | C11: 0 | D11: =-SIN(step*Init!$B$2) -> -0.1736481777 | F11: =B11*Axx+C11*Ayx+D11*Azx -> 0.5 | G11: =B11*Axy+C11*Ayy+D11*Azy -> 0 | H11: =B11*Axz+C11*Ayz+D11*Azz -> -0.8660254038 | J11: 22
A12: right | B12: 0 | C12: 1 | D12: 0 | E12: *A = | F12: =B12*Axx+C12*Ayx+D12*Azx -> 0 | G12: =B12*Axy+C12*Ayy+D12*Azy -> 1 | H12: =B12*Axz+C12*Ayz+D12*Azz -> 0
B13: =SIN(step*Init!$B$2) -> 0.1736481777 | C13: 0 | D13: =COS(step*Init!$B$2) -> 0.984807753 | F13: =B13*Axx+C13*Ayx+D13*Azx -> 0.8660254038 | G13: =B13*Axy+C13*Ayy+D13*Azy -> 0 | H13: =B13*Axz+C13*Ayz+D13*Azz -> 0.5
B15: =COS(step*Init!$B$2) -> 0.984807753 | C15: 0 | D15: =SIN(step*Init!$B$2) -> 0.1736481777 | F15: =B15*Axx+C15*Ayx+D15*Azx -> 0.7660444431 | G15: =B15*Axy+C15*Ayy+D15*Azy -> 0 | H15: =B15*Axz+C15*Ayz+D15*Azz -> -0.6427876097
A16: left | B16: 0 | C16: 1 | D16: 0 | E16: *A = | F16: =B16*Axx+C16*Ayx+D16*Azx -> 0 | G16: =B16*Axy+C16*Ayy+D16*Azy -> 1 | H16: =B16*Axz+C16*Ayz+D16*Azz -> 0
B17: =-SIN(step*Init!$B$2) -> -0.1736481777 | C17: 0 | D17: =COS(step*Init!$B$2) -> 0.984807753 | F17: =B17*Axx+C17*Ayx+D17*Azx -> 0.6427876097 | G17: =B17*Axy+C17*Ayy+D17*Azy -> 0 | H17: =B17*Axz+C17*Ayz+D17*Azz -> 0.7660444431
B19: 1 | C19: 0 | D19: 0 | F19: =B19*Axx+C19*Ayx+D19*Azx -> 0.6427876097 | G19: =B19*Axy+C19*Ayy+D19*Azy -> 0 | H19: =B19*Axz+C19*Ayz+D19*Azz -> -0.7660444431
A20: up | B20: 0 | C20: =COS(step*Init!$B$2) -> 0.984807753 | D20: =-SIN(step*Init!$B$2) -> -0.1736481777 | E20: *A = | F20: =B20*Axx+C20*Ayx+D20*Azx -> -0.1330222216 | G20: =B20*Axy+C20*Ayy+D20*Azy -> 0.984807753 | H20: =B20*Axz+C20*Ayz+D20*Azz -> -0.111618897
B21: 0 | C21: =SIN(step*Init!$B$2) -> 0.1736481777 | D21: =COS(step*Init!$B$2) -> 0.984807753 | F21: =B21*Axx+C21*Ayx+D21*Azx -> 0.7544065067 | G21: =B21*Axy+C21*Ayy+D21*Azy -> 0.1736481777 | H21: =B21*Axz+C21*Ayz+D21*Azz -> 0.6330222216
B23: 1 | C23: 0 | D23: 0 | F23: =B23*Axx+C23*Ayx+D23*Azx -> 0.6427876097 | G23: =B23*Axy+C23*Ayy+D23*Azy -> 0 | H23: =B23*Axz+C23*Ayz+D23*Azz -> -0.7660444431
A24: down | B24: 0 | C24: =COS(step*Init!$B$2) -> 0.984807753 | D24: =SIN(step*Init!$B$2) -> 0.1736481777 | E24: *A = | F24: =B24*Axx+C24*Ayx+D24*Azx -> 0.1330222216 | G24: =B24*Axy+C24*Ayy+D24*Azy -> 0.984807753 | H24: =B24*Axz+C24*Ayz+D24*Azz -> 0.111618897
B25: 0 | C25: =-SIN(step*Init!$B$2) -> -0.1736481777 | D25: =COS(step*Init!$B$2) -> 0.984807753 | F25: =B25*Axx+C25*Ayx+D25*Azx -> 0.7544065067 | G25: =B25*Axy+C25*Ayy+D25*Azy -> -0.1736481777 | H25: =B25*Axz+C25*Ayz+D25*Azz -> 0.6330222216

Sheet Formulas
E3: minx= | F3: =MIN(B8:B4007) -> -30.7210384 | G3: maxx= | H3: =MAX(B8:B4007) -> 36.68335416 | I3: gemx= | J3: =(F3+H3)/2 -> 2.981157881
E4: miny= | F4: =MIN(C8:C4007) -> -50.26871219 | G4: maxy= | H4: =MAX(C8:C4007) -> 63.38324189 | I4: gemy= | J4: =(F4+H4)/2 -> 6.557264846
B5: -3-50 | C5: 5-60 | D5: 0-50 | E5: minz= | F5: =MIN(D8:D4007) -> 0 | G5: maxz= | H5: =MAX(D8:D4007) -> 119.9321894 | I5: gemz= | J5: =(F5+H5)/2 -> 59.96609468
B7: x | C7: y | D7: z | F7: x.proj | G7: y.proj | H7: z.proj | I7: x.sorted | J7: y.sorted | K7: z.sorted
B8: 0 | C8: 1 | D8: 0 | F8: =Axx*(B8-x0)+Axy*(C8-y0)+Axz*(D8-z0) -> 44.02044226 | G8: =Ayx*(B8-x0)+Ayy*(C8-y0)+Ayz*(D8-z0) -> -5.557264846 | H8: =Azx*(B8-x0)+Azy*(C8-y0)+Azz*(D8-z0) -> -40.82916209 | I8: -25.17090343 | J8: 0.03971462458 | K8: 63.29316771
B9: =B8+dt*s*(C8-B8) -> 0.05 | C9: =C8+dt*(B8*(rr-D8)-C8) -> 0.995 | D9: =D8+dt*(B8*C8-b*D8) -> 0 | F9: 44.05258164 | G9: -5.562264846 | H9: -40.79085987 | I9: -23.65967114 | J9: 10.77003737 | K9: 63.25902538
B10: 0.09725 | C10: 1.005025 | D10: 0.00024875 | F10: 44.0827628 | G10: -5.552239846 | H10: -40.75450438 | I10: -25.46869989 | J10: -10.56740384 | K10: 61.670441
B11: 0.14263875 | C11: 1.029174754 | D11: 0.0007333390313 | F11: 44.11156691 | G11: -5.528090092 | H11: -40.71942309 | I11: -20.94415159 | J11: 21.10379191 | K11: 61.56932257
B12: 0.1869655502 | C12: 1.066819982 | D12: 0.001455239939 | F12: 44.13950662 | G12: -5.490444864 | H12: -40.68500276 | I12: -24.66000625 | J12: -20.55368358 | K12: 58.52055875
B13: 0.2309582718 | C13: 1.117574187 | D13: 0.002428521405 | F13: 44.16703902 | G13: -5.439690659 | H13: -40.65067677 | I13: -17.14437977 | J13: 30.56564834 | K13: 58.35073525
B14: 0.2752890676 | C14: 1.181270993 | D14: 0.003679015816 | F14: 44.19457637 | G14: -5.375993853 | H14: -40.6159136 | I14: -22.95148635 | J14: -29.50791351 | K14: 54.08738989
B15: 0.3205881638 | C15: 1.257946295 | D15: 0.005244267007 | F15: 44.22249502 | G15: -5.299318552 | H15: -40.58020636 | I15: -12.46729294 | J15: 38.7784712 | K15: 53.83013644
B16: 0.3674560704 | C16: 1.347824606 | D16: 0.007174150065 | F16: 44.25114275 | G16: -5.20944024 | H16: -40.54306296 | I16: -16.55212172 | J16: 3.225467156 | K16: 49.83149513
B17: 0.4164744972 | C17: 1.451309123 | D17: 0.009532108255 | F17: 44.28084489 | G17: -5.105955723 | H17: -40.503997 | I17: -15.3977107 | J17: 10.14774292 | K17: 49.81163992
B18: 0.4682162285 | C18: 1.568975077 | D18: 0.01239699466 | F18: 44.3119092 | G18: -4.988289769 | H18: -40.46251902 | I18: -17.03874104 | J18: -3.639967916 | K18: 48.88662766
B19: 0.5232541709 | C19: 1.701566048 | D19: 0.01586554221 | F19: 44.34462985 | G19: -4.855698798 | H19: -40.41812797 | I19: -13.57896941 | J19: 16.87249354 | K19: 48.82225448
B20: 0.5821697648 | C20: 1.849992961 | D20: 0.02005551842 | F20: 44.37929035 | G20: -4.707271886 | H20: -40.37030274 | I20: -20.6153506 | J20: -37.15183496 | K20: 48.69312047
B21: 0.6455609245 | C21: 2.015335547 | D21: 0.0251096522 | F21: 44.41616571 | G21: -4.5419293 | H21: -40.31849356 | I21: -7.171632481 | J21: 45.49455478 | K21: 48.29768843
B22: 0.7140496556 | C22: 2.198846097 | D22: 0.03120045233 | F22: 44.4555236 | G22: -4.358418749 | H22: -40.26211306 | I22: -16.90165602 | J22: -10.20494054 | K22: 47.03796012
B23: 0.7882894777 | C23: 2.40195537 | D23: 0.03853607136 | F23: 44.49762462 | G23: -4.155309476 | H23: -40.20052681 | I23: -11.14615313 | J23: 23.15929283 | K23: 46.91390873
B24: 0.8689727723 | C24: 2.626280549 | D24: 0.0473674069 | F24: 44.54272165 | G24: -3.930984298 | H24: -40.13304315 | I24: -16.22654621 | J24: -16.25994692 | K24: 44.39602
B25: 0.9568381611 | C25: 2.873635173 | D25: 0.05799667614 | F25: 44.59105794 | G25: -3.683629674 | H25: -40.05890199 | I25: -8.189267196 | J25: 28.80330057 | K25: 44.18504269
B26: 1.052678012 | C26: 3.146040978 | D26: 0.07078774995 | F26: 44.64286408 | G26: -3.411223869 | H26: -39.97726246 | I26: -17.94662251 | J26: -43.35893675 | K26: 42.69255234
B27: 1.15734616 | C27: 3.445741593 | D27: 0.08617859288 | F27: 44.6983534 | G27: -3.111523253 | H27: -39.88718896 | I27: -1.530885412 | J27: 50.60219682 | K27: 42.06744605
B28: 1.271765932 | C28: 3.775218041 | D28: 0.1046962251 | F28: 44.75771568 | G28: -2.782046806 | H28: -39.78763543 | I28: -15.12917108 | J28: -21.64746362 | K28: 41.10831753
B29: 1.396938537 | C29: 4.137205985 | D29: 0.1269747058 | F29: 44.82110877 | G29: -2.420058862 | H29: -39.67742732 | I29: -4.826498321 | J29: 33.65055101 | K29: 40.76952777
B30: 1.533951909 | C30: 4.534714636 | D30: 0.1537767356 | F30: 44.88864773 | G30: -2.02255021 | H30: -39.55524097 | I30: -8.662016788 | J30: 8.42859067 | K30: 37.85094572
B31: 1.683990046 | C31: 4.971047205 | D31: 0.1860195903 | F31: 44.96039092 | G31: -1.586217641 | H31: -39.41957979 | I31: -9.395635974 | J31: 4.269311299 | K31: 37.72094377
B32: 1.848342904 | C32: 5.449822708 | D32: 0.2248062371 | F32: 45.03632261 | G32: -1.107442139 | H32: -39.26874662 | I32: -7.591601969 | J32: 12.52414284 | K32: 37.45619615
B33: 2.028416894 | C33: 5.97499887 | D33: 0.2714626399 | F33: 45.11633106 | G33: -0.5822659763 | H33: -39.10081178 | I33: -13.74072744 | J33: -26.27144339 | K33: 37.34307916
B34: 2.225745993 | C34: 6.550895747 | D34: 0.3275824495 | F34: 45.20018149 | G34: -0.006369099494 | H34: -38.9135758 | I34: -9.794125757 | J34: 0.1573548465 | K34: 37.07553625
B35: 2.442003481 | C35: 7.182219489 | D35: 0.3950804889 | F35: 45.28748263 | G35: 0.624954643 | H35: -38.70452605 | I35: -1.190595699 | J35: 37.6053018 | K35: 36.8218592
B36: 2.679014281 | C36: 7.874085496 | D36: 0.4762566858 | F36: 45.37764566 | G36: 1.31682065 | H36: -38.47078619 | I36: -6.199865299 | J36: 16.44647619 | K36: 36.54883568
B37: 2.938767842 | C37: 8.632039861 | D37: 0.573872388 | F37: 45.46983406 | G37: 2.074775015 | H37: -38.20905726 | I37: -15.22286815 | J37: -48.14448036 | K37: 36.42873386
B38: 3.223431443 | C38: 9.462077626 | D38: 0.6912412993 | F38: 45.56290249 | G38: 2.904812779 | H38: -37.915549 | I38: -9.875795187 | J38: -3.802419045 | K38: 35.94488501
B39: 3.535363752 | C39: 10.37065583 | D39: 0.8323376105 | F39: 45.65532267 | G39: 3.813390979 | H39: -37.58590003 | I39: 4.198220644 | J39: 54.1118707 | K39: 35.44313285
B40: 3.877128356 | C40: 11.36469859 | D40: 1.001924243 | F40: 45.74509383 | G40: 4.807433744 | H40: =Azx*(B40-x0)+Azy*(C40-y0)+Azz*(D40-z0) -> -37.21508497 | I40: -4.518178443 | J40: 20.09513105 | K40: 35.16120256
B41: 4.251506867 | C41: 12.45159066 | D41: 1.205704469 | F41: 45.82963499 | G41: 5.894325814 | H41: -36.79730699 | I41: -7.413638694 | J41: 6.028201988 | K41: 34.78601031
B42: 4.661511057 | C42: 13.63915446 | D42: 1.450500461 | F42: 45.90565599 | G42: 7.081889616 | H42: -36.32587372 | I42: -6.658098551 | J42: 9.578657292 | K42: 34.75166336
B43: 5.110393227 | C43: 14.93560439 | D43: 1.744462551 | F43: 45.96900386 | G43: 8.378339541 | H43: -35.79305484 | I43: -7.145140687 | J43: 6.259018045 | K43: 34.40409633
B44: 5.601653785 | C44: 16.34946989 | D44: 2.097312976 | F44: 46.01448095 | G44: 9.79220504 | H44: -35.18991954 | I44: -7.894423448 | J44: 2.483742313 | K44: 34.38805192
B45: 6.13904459 | C45: 17.88947657 | D45: 2.520627661 | F45: 46.03563124 | G45: 11.33221172 | H45: -34.50615287 | I45: -9.673415873 | J45: -7.518362476 | K45: 34.37739168
B46: 6.726566189 | C46: 19.56437133 | D46: 3.028158777 | F46: 46.02449146 | G46: 13.00710649 | H46: -33.7298505 | I46: -6.386391871 | J46: 9.732953294 | K46: 34.34821296
B47: 7.368456446 | C47: 21.38267378 | D47: 3.63619935 | F47: 45.97130446 | G47: 14.82540893 | H47: -32.84729309 | I47: -5.631527216 | J47: 13.04834885 | K47: 34.28306613
B48: 8.069167313 | C48: 23.35233146 | D48: 4.363988563 | F48: 45.86419384 | G48: 16.79506662 | H48: -31.84270353 | I48: -6.958815569 | J48: 6.398840151 | K48: 34.12309047
B49: 8.83332552 | C49: 25.48025123 | D49: 5.234152101 | F49: 45.68880132 | G49: 18.92298638 | H49: -30.69799404 | I49: -6.200398749 | J49: 9.817561937 | K49: 34.0551115
B50: 9.665671806 | C50: 27.77167278 | D50: 6.273165358 | F50: 45.42789287 | G50: 21.21440794 | H50: -29.39251495 | I50: -7.636445513 | J50: 2.786021643 | K50: 34.03786165
B51: 10.57097185 | C51: 30.22934417 | D51: 7.511817503 | F51: 45.06094593 | G51: 23.67207933 | H51: -27.90282463 | I51: -6.632301621 | J51: 7.51170265 | K51: 33.93492673
B52: 11.55389047 | C52: 32.85245295 | D52: 8.985640246 | F52: 44.56374012 | G52: 26.29518811 | H52: -26.20251028 | I52: -5.364524039 | J52: 13.12393113 | K52: 33.8691347
B53: 12.61881859 | C53: 35.63526231 | D53: 10.7352454 | F53: 43.90798742 | G53: 29.07799747 | H53: -24.2621035 | I53: -7.455157011 | J53: 2.97815192 | K53: 33.77644128
B54: 13.76964078 | C54: 38.56540101 | D54: 12.8064884 | F54: 43.06105747 | G54: 32.00813616 | H54: -22.04915322 | I54: -5.798561944 | J54: 10.8731288 | K54: 33.73573751
B55: 15.00942879 | C55: 41.62176251 | D55: 15.25033994 | F55: 41.98587895 | G55: 35.06449767 | H55: -19.52854302 | I55: -7.208283813 | J55: 4.12235264 | K55: 33.72345031
B56: 16.34004548 | C56: 44.77198788 | D56: 18.12230373 | F56: 40.64113096 | G56: 38.21472303 | H56: -16.66316876 | I56: -8.109166957 | J56: -0.9706736661 | K56: 33.57557949
B57: 17.7616426 | C57: 47.96954525 | D57: 21.48116731 | F57: 38.9818772 | G57: 41.4122804 | H57: -13.41512629 | I57: -5.184559429 | J57: 13.15249256 | K57: 33.57191707
B58: 19.27203773 | C58: 51.15048622 | D58: 25.38681764 | F58: 36.96083874 | G58: 44.59322137 | H58: -9.747592851 | I58: -4.350065142 | J58: 16.35327674 | K58: 33.39419656
B59: 20.86596016 | C59: 54.23006657 | D59: 29.89680565 | F59: 34.53054107 | G59: 47.67280173 | H59: -5.627613022 | I59: -2.591063635 | J59: 23.38495974 | K59: 33.34283637
B60: 22.53416548 | C60: 57.09957651 | D60: 35.0613204 | F60: 31.64659496 | G60: 50.54231166 | H60: -1.030007516 | I60: -12.1930256 | J60: -30.09767143 | K60: 33.27240825
B61: 24.26243603 | C61: 59.62394029 | D61: 40.91626514 | F61: 28.27235797 | G61: 53.06667544 | H61: 4.057410472 | I61: -7.867934908 | J61: -0.6044670339 | K61: 33.26585662
B62: 26.03051124 | C62: 61.64091007 | D62: 47.47425695 | F62: 24.38514163 | G62: 55.08364522 | H62: 9.627230544 | I62: -4.715356992 | J62: 14.12672661 | K62: 33.13001844
B63: 27.81103118 | C63: 62.962963 | D63: 54.71365372 | F63: 19.98393812 | G63: 56.40569815 | H63: 15.6445825 | I63: -7.529630058 | J63: 0.7845154757 | K63: 33.11182399
B64: 29.56862777 | C64: 63.38324189 | D64: 62.56620307 | F64: 15.09829763 | G64: 56.82597704 | H64: 22.03850103 | I64: -7.69637156 | J64: -0.3647761957 | K64: 33.03060209
B65: 31.25935848 | C65: 62.68693016 | D65: 70.90463815 | F65: 9.797466525 | G65: 56.12966531 | H65: 28.69351864 | I65: -4.095739845 | J65: 16.3509442 | K65: 32.98106923
B66: 32.83073706 | C66: 60.66913554 | D66: 79.53247773 | F66: 4.198220644 | G66: 54.1118707 | H66: 35.44313285 | I66: -5.97200183 | J66: 7.472554327 | K66: 32.73975789
B67: 34.22265699 | C67: 57.15946166 | D67: 88.17925404 | F67: -1.530885412 | G67: 50.60219682 | H67: 42.06744605 | I67: -3.92744784 | J67: 16.32474427 | K67: 32.68775093
B68: 35.36949722 | C68: 52.05181963 | D68: 96.50503959 | F68: -7.171632481 | G68: 45.49455478 | H68: 48.29768843 | I68: -5.188539793 | J68: 10.61713815 | K68: 32.56660191
B69: 36.20361334 | C69: 45.33573605 | D69: 104.1179399 | F69: -12.46729294 | G69: 38.7784712 | H69: 53.83013644 | I69: -6.519464492 | J69: 4.303661368 | K69: 32.53385109
B70: 36.66021948 | C70: 37.12291318 | D70: 110.6065812 | F70: -17.14437977 | G70: 30.56564834 | H70: 58.35073525 | I70: 2.584348196 | J70: 40.62967338 | K70: 32.50253059
B71: 36.68335416 | C71: 27.66105675 | D71: 115.5862433 | F71: -20.94415159 | G71: 21.10379191 | H71: 61.56932257 | I71: -9.230702372 | J71: -10.91745008 | K71: 32.43557689
B72: 36.23223929 | C72: 17.32730222 | D72: 118.752572 | F72: =Axx*(B72-x0)+Axy*(C72-y0)+Axz*(D72-z0) -> -23.65967114 | G72: =Ayx*(B72-x0)+Ayy*(C72-y0)+Ayz*(D72-z0) -> 10.77003737 | H72: =Azx*(B72-x0)+Azy*(C72-y0)+Azz*(D72-z0) -> 63.25902538 | I72: -8.077894528 | J72: -4.258894908 | K72: 32.38083736
B73: =B72+dt*s*(C72-B72) -> 35.28699244 | C73: =C72+dt*(B72*(rr-D72)-C72) -> 6.596979471 | D73: =D72+dt*(B72*C72-b*D72) -> 119.9321894 | F73: -25.17090343 | G73: 0.03971462458 | H73: 63.29316771 | I73: -3.40196446 | J73: 17.19697612 | K73: 32.13616336
B74: 33.85249179 | C74: -4.01013899 | D74: 119.1172461 | F74: -25.46869989 | G74: -10.56740384 | H74: 61.670441 | I74: -7.610277912 | J74: -2.427663597 | K74: 32.12442928
B75: 31.95936025 | C75: -13.99641873 | D75: 116.4730455 | F75: -24.66000625 | G75: -20.55368358 | H75: 58.52055875 | I75: -7.858175895 | J75: -3.838182655 | K75: 32.11843409
B76: 29.6615713 | C76: -22.95064867 | D76: 112.3146573 | F76: -22.95148635 | G76: -29.50791351 | H76: 54.08738989 | I76: -2.841113781 | J76: 19.41731937 | K76: 32.11373456
B77: 27.0309603 | C77: -30.59457011 | D77: 107.057704 | F77: -20.6153506 | G77: -37.15183496 | H77: 48.69312047 | I77: -4.176424772 | J77: 13.66554432 | K77: 32.01762724
B78: 24.14968378 | C78: -36.8016719 | D78: 101.1562488 | F78: -17.94662251 | G78: -43.35893675 | H78: 42.69255234 | I78: -6.833562735 | J78: 1.181778502 | K78: 31.95855762
B79: 21.102116 | C79: -41.58721552 | D79: 95.043427 | F79: -15.22286815 | G79: -48.14448036 | H79: 36.42873386 | I79: -7.700064182 | J79: -3.557137083 | K79: 31.91467632
B80: 17.96764942 | C80: -45.07673175 | D80: 89.08731923 | F80: -12.67502116 | G80: -51.63399659 | H80: 30.19908088 | I80: -2.606975597 | J80: 19.34073193 | K80: 31.71229648
B81: 14.81543036 | C81: -47.46450186 | D81: 83.56776389 | F81: -10.47300383 | G81: -54.02176671 | H81: 24.23643921 | I81: -2.45558454 | J81: 19.26304372 | K81: 31.43049188
B82: 11.70143375 | C82: -48.97301217 | D82: 78.67286068 | F82: -8.724928857 | G82: -55.53027702 | H82: 18.70459627 | I82: -0.4723981371 | J82: 26.25055185 | K82: 31.15626167
B83: 8.667711456 | C83: -49.82064332 | D83: 74.50948619 | F83: -7.485638068 | G83: -56.37790817 | H83: 13.70446463 | I83: -2.952655776 | J83: 16.54954077 | K83: 31.10871173
B84: 5.743293717 | C84: -50.20036031 | D84: 71.12092486 | F84: -6.769628982 | G84: -56.75762515 | H84: 9.286105437 | I84: -6.926381177 | J84: -1.826465362 | K84: 31.03576458
B85: 2.946111016 | C85: -50.26871219 | D85: 68.50585253 | F85: -6.564361738 | G85: -56.82597704 | H85: 5.462403081 | I85: -4.654010329 | J85: 9.064581533 | K85: 31.00304859
B86: 0.2853698556 | C86: -50.14266456 | D86: 66.63501993 | F86: -6.841512271 | G86: -56.69992941 | H86: 2.221609085 | I86: -5.280439799 | J86: 6.20189047 | K86: 30.99885416
B87: -2.236031865 | C87: -49.90141841 | D87: 65.46399608 | F87: -7.56518174 | G87: -56.45868326 | H87: -0.4626163161 | I87: -7.829828531 | J87: -7.316968467 | K87: 30.8479855
B88: -4.619301193 | C88: -49.59082297 | D88: 64.94174595 | F88: -8.697050927 | G88: -56.14808782 | H88: -2.624002451 | I88: -7.473437795 | J88: -5.449578994 | K88: 30.79763371
B89: -6.867877282 | C89: -49.22873179 | D89: 65.01558188 | F89: -10.19896938 | G89: -55.78599664 | H89: -4.299050848 | I89: -1.887266337 | J89: 20.01708372 | K89: 30.78533089
B90: -8.985920007 | C90: -48.81035613 | D90: 65.63330922 | F90: -12.0336276 | G90: -55.36762098 | H90: -5.524498227 | I90: -3.823084083 | J90: 11.87198942 | K90: 30.67065093
B91: -10.97714181 | C91: -48.31320202 | D91: 66.7433894 | F91: -14.16393105 | G91: -54.87046687 | H91: -6.336316843 | I91: -5.699667559 | J91: 3.345450288 | K91: 30.66043952
B92: -12.84394482 | C92: -47.7015203 | D92: 68.29382783 | F92: -16.55159364 | G92: -54.25878515 | H92: -6.769768306 | I92: -7.634712335 | J92: -6.852330734 | K92: 30.63758805
B93: -14.5868236 | C93: -46.93038536 | D93: 70.23035814 | F93: -19.15536281 | G93: -53.48765021 | H93: -6.860113214 | I93: -4.490975292 | J93: 8.640215379 | K93: 30.58069348
B94: -16.20400169 | C94: -45.94959129 | D94: 72.49438349 | F94: -21.92920889 | G94: -52.50685614 | H94: -6.643656057 | I94: -5.077703924 | J94: 5.851919715 | K94: 30.52976518
B95: -17.69128117 | C95: -44.70754828 | D95: 75.02106244 | F95: -24.82076207 | G95: -51.26481312 | H95: -6.158860318 | I95: -1.141232228 | J95: 22.17644265 | K95: 30.48274306
B96: -19.04209452 | C96: -43.15530134 | D96: 77.73788394 | F96: -27.77025418 | G96: -49.71256619 | H96: -5.447304182 | I96: -7.492635763 | J96: -6.537104408 | K96: 30.46918362
B97: -20.24775486 | C97: -41.25069252 | D97: 80.5640455 | F97: -30.71020306 | G97: -47.80795737 | H97: -4.554271958 | I97: -3.705820605 | J97: 11.38339372 | K97: 30.30524292
B98: -21.29790175 | C98: -38.9625603 | D98: 83.41090829 | F98: -33.56604789 | G98: -45.51982514 | H98: -3.528803008 | I98: -12.67502116 | J98: -51.63399659 | K98: 30.19908088
B99: -22.18113467 | C99: -36.27473137 | D99: 86.18373221 | F99: -36.25788543 | G99: -42.83199622 | H99: -2.423061826 | I99: -8.598008001 | J99: -13.94849577 | K99: 30.19100624
B100: -22.88581451 | C100: -33.18943326 | D100: 88.78477414 | F100: -38.70335861 | G100: -39.74669811 | H100: -1.290960375 | I100: -4.74306737 | J100: 6.472779887 | K100: 30.1688427
B101: -23.40099545 | C101: -29.72967109 | D101: 91.11766143 | F101: -40.82160588 | G101: -36.28693594 | H101: -0.1860608226 | I101: -5.464429612 | J101: 3.07741417 | K101: 30.15618402
B102: -23.71742923 | C102: -25.94010147 | D102: 93.09273951 | F102: -42.53800318 | G102: -32.49736631 | H102: 0.8410925518 | I102: -4.126219664 | J102: 9.188079216 | K102: 30.15263944
B103: -23.82856284 | C103: -21.88602742 | D103: 94.63287191 | F103: -43.78924835 | G103: -28.44329227 | H103: 1.745937291 | I103: -0.9338685761 | J103: 22.0317599 | K103: 30.10292395
B104: -23.73143607 | C104: -17.65033946 | D104: 95.67899242 | F104: -44.52819128 | G104: -24.20760431 | H104: =Azx*(B104-x0)+Azy*(C104-y0)+Azz*(D104-z0) -> 2.492774017 | I104: -2.798497166 | J104: 14.56391717 | K104: 30.01000372
B105: -23.42738124 | C105: -13.32851913 | D105: 96.19462856 | F105: -44.7277488 | G105: -19.88578397 | H105: 3.057138051 | I105: -5.917056607 | J105: 0.5547561581 | K105: 30.00073063
B106: -22.92243813 | C106: -9.02214972 | D106: 96.16867868 | F106: -44.38329886 | G106: -15.57941457 | H106: 3.427266652 | I106: -5.165918339 | J106: 3.758640888 | K106: 29.87010447
B107: -22.22742371 | C107: -4.831667474 | D107: 95.61594383 | F107: -43.51313274 | G107: -11.38893232 | H107: 3.604387471 | I107: -1.542748309 | J107: 19.20831494 | K107: 29.86714252
B108: -21.3576359 | C108: -0.849255765 | D108: 94.57525836 | F108: -42.15683259 | G108: -7.406520611 | H108: 3.601743864 | I108: -0.8038846994 | J108: 21.90755677 | K108: 29.83946965
B109: -20.33221689 | C109: 2.84721941 | D109: 93.10545707 | F109: -40.37177285 | G109: -3.710045437 | H109: 3.442490341 | I109: -3.318542133 | J109: 11.84780207 | K109: 29.81996209
B110: -19.17324508 | C110: 6.19851998 | D110: 91.27976562 | F110: -38.22823934 | G110: -0.3587448663 | H110: 3.156782413 | I110: -6.818132744 | J110: -4.662778929 | K110: 29.79794107
B111: -17.90465683 | C111: 9.166200441 | D111: 89.17942077 | F111: -35.80384903 | G111: 2.608935595 | H111: 2.778501752 | I111: -2.731555959 | J111: 14.02334259 | K111: 29.70990837
B112: -16.55111396 | C112: 11.73260702 | D112: 86.88737196 | F112: -33.17799719 | G112: 5.175342169 | H112: 2.342075166 | I112: -5.657165518 | J112: 0.3732296658 | K112: 29.47363724
B113: -15.13692791 | C113: 13.89902377 | D113: 84.48279174 | F113: -30.42696061 | G113: 7.341758921 | H113: 1.87977016 | I113: -5.398910643 | J113: 1.100760037 | K113: 29.26758068
B114: -13.68513033 | C114: 15.68249992 | D114: 82.03688308 | F114: -27.62008837 | G114: 9.125235071 | H114: 1.419711846 | I114: -4.060326283 | J114: 7.169609636 | K114: 29.21539097
B115: -12.21674882 | C115: 17.1119755 | D115: 79.61018923 | F115: -24.81727559 | G115: 10.55471066 | H115: 0.9847086064 | I115: -2.330526635 | J115: 14.39658264 | K115: 29.17900783
B116: -10.7503126 | C116: 18.22427941 | D116: 77.25135758 | F116: -22.06769868 | G116: 11.66701456 | H116: 0.5918361599 | I116: -7.149325208 | J116: -8.229382147 | K116: 29.17705501
B117: -9.301583001 | C117: 19.06044544 | D117: 74.99712667 | F117: -19.40963218 | G117: 12.5031806 | H117: 0.2526357262 | I117: -3.429830576 | J117: 9.712518176 | K117: 29.13167407
B118: -7.883481579 | C118: 19.66262831 | D118: 72.87321251 | F118: -16.87108151 | G118: 13.10536346 | H118: -0.02626126993 | I118: -0.2076208873 | J118: 22.53237528 | K118: 29.11907382
B119: -6.506176084 | C119: 20.07174383 | D119: 70.89575466 | F119: -14.47094601 | G119: 13.51447899 | H119: -0.242269452 | I119: -10.60608563 | J119: -33.14628528 | K119: 29.05767308
B120: -5.177280088 | C120: 20.32583361 | D120: 69.07302321 | F120: -12.22045483 | G120: 13.76856876 | H120: -0.395905251 | I120: -5.945326346 | J120: -2.115908802 | K120: 29.04228817
B121: -3.902124404 | C121: 20.45907235 | D121: 67.40715566 | F121: -10.12467198 | G121: 13.9018075 | H121: -0.4898783457 | I121: -1.598625898 | J121: 17.08473993 | K121: 29.0395588
B122: -2.684064566 | C122: 20.5012952 | D122: 65.89576836 | F122: -8.183928367 | G122: 13.94403036 | H122: -0.5282914028 | I122: -7.400596226 | J122: -10.09610527 | K122: 29.02975048
B123: -1.524796577 | C123: 20.47791184 | D123: 64.53335418 | F123: -6.395095457 | G123: 13.920647 | H123: -0.5159835551 | I123: -4.511943679 | J123: 4.614714774 | K123: 29.00530117
B124: -0.4246611564 | C124: 20.4100845 | D124: 63.31243059 | F124: -4.752660306 | G124: 13.85281965 | H124: -0.4580254874 | I124: -7.231440459 | J124: -9.598511581 | K124: 28.87379726
B125: 0.6170761263 | C125: 20.31506738 | D125: 62.22443864 | F125: -3.249594296 | G125: 13.75780253 | H125: -0.359356179 | I125: -1.58477116 | J125: 16.50583374 | K125: 28.81094425
B126: 1.601975689 | C126: 20.2066288 | D126: 61.26041511 | F126: -1.878028199 | G126: 13.64936395 | H126: -0.2245417175 | I126: -2.625093044 | J126: 12.19206243 | K126: 28.75483075
B127: 2.532208344 | C127: 20.09549989 | D127: 60.4114709 | F127: -0.6297571797 | G127: 13.53823504 | H127: -0.05763297968 | I127: -7.106773914 | J127: -9.256712749 | K127: 28.74303592
B128: 3.410372922 | C128: 19.98981274 | D128: 59.6691116 | F128: 0.503396352 | G128: 13.43254789 | H128: 0.13790075 | I128: 9.797466525 | J128: 56.12966531 | K128: 28.69351864
B129: 4.239344912 | C129: 19.89550594 | D129: 59.02543484 | F129: 1.529334282 | G129: 13.33824109 | H129: 3 | I129: 1.778861958 | J129: 28.64849514 | K129: 28.67215869
B130: 5.022152963 | C130: 19.816686 | D130: 58.47323472 | F130: 2.455523428 | G130: 13.25942115 | H130: =Azx*(B130-x0)+Azy*(C130-y0)+Azz*(D130-z0) -> 0.6039010557 | I130: 0.7066059589 | J130: 24.58161337 | K130: 28.55158283
B131: 5.761879615 | C131: 19.75594081 | D131: 58.00603849 | F131: 3.288903631 | G131: 13.19867596 | H131: 0.8702565977 | I131: -4.786554668 | J131: 2.098387114 | K131: 28.50937852
B132: 6.461582675 | C132: 19.71460594 | D132: 57.61809562 | F132: 4.03584557 | G132: 13.15734109 | H132: 1.156895367 | I132: -5.668769004 | J132: -2.209416552 | K132: 28.50481277
B133: 7.124233838 | C133: 19.69298727 | D133: 57.30433482 | F133: 4.702144242 | G133: 13.13572242 | H133: 1.462834056 | I133: -5.452898212 | J133: -1.45025404 | K133: 28.3812746
B134: 7.752671509 | C134: 19.69054508 | D134: 57.06030053 | F134: 5.293037305 | G134: 13.13328023 | H134: 1.787383022 | I134: 0.02104693961 | J134: 21.59148402 | K134: 28.32962915
B135: 8.349565188 | C135: 19.70604497 | D135: 56.88207721 | F135: 5.813240149 | G135: 13.14878013 | H135: 2.130070366 | I135: -6.535230396 | J135: -7.279988943 | K135: 28.28578792
B136: 8.917389177 | C136: 19.73768125 | D136: 56.76620747 | F136: =Axx*(B136-x0)+Axy*(C136-y0)+Axz*(D136-z0) -> 6.266991743 | G136: =Ayx*(B136-x0)+Ayy*(C136-y0)+Ayz*(D136-z0) -> 13.1804164 | H136: 2.490569145 | I136: -1.17943953 | J136: 16.78329943 | K136: 28.24713877
B137: =B136+dt*s*(C136-B136) -> 9.45840378 | C137: =C136+dt*(B136*(rr-D136)-C136) -> 19.78317777 | D137: =D136+dt*(B136*C136-b*D136) -> 56.70960797 | F137: 6.658106958 | G137: 13.22591293 | H137: 2.86862892 | I137: 0.8818715392 | J137: 24.37696271 | K137: 28.20192521
B138: 9.97464248 | C138: 19.83987117 | D138: 56.70948586 | F138: 6.990032343 | G138: 13.28260632 | H138: 3.264012213 | I138: -1.657161048 | J138: 14.55865651 | K138: 28.09415851
B139: 10.46790391 | C139: 19.90478032 | D139: 56.76325745 | F139: 7.265903252 | G139: 13.34751547 | H139: 3.676436107 | I139: -3.136386954 | J139: 8.344440372 | K139: 28.03769295
B140: 10.93974773 | C140: 19.97466597 | D140: 56.86847034 | F140: 7.488600862 | G140: 13.41740112 | H140: 4.105518987 | I140: -3.643636375 | J140: 5.981732025 | K140: 27.97108663
B141: 11.39149365 | C141: 20.04608336 | D141: 57.02272961 | F141: 7.660808078 | G141: 13.48881852 | H141: 4.550732382 | I141: 6.373857581 | J141: 42.73717267 | K141: 27.96556326
B142: 11.82422313 | C142: 20.11543073 | D142: 57.22362873 | F142: 7.785063577 | G142: 13.55816588 | H142: 5.011357863 | I142: 0.9868851918 | J142: 24.21252137 | K142: 27.96259594
B143: 12.23878351 | C143: 20.17899574 | D143: 57.46868556 | F143: 7.863813428 | G143: 13.6217309 | H143: 5.486449034 | I143: -2.468729632 | J143: 10.67391096 | K143: 27.8355606
B144: 12.63579412 | C144: 20.23300181 | D144: 57.75528405 | F144: 7.899459749 | G144: 13.67573696 | H144: 10 | I144: -5.80328652 | J144: -4.620126937 | K144: 27.81573192
B145: 13.01565451 | C145: 20.27365564 | D145: 58.08062209 | F145: 7.8944059 | G145: 13.7163908 | H145: =Azx*(B145-x0)+Azy*(C145-y0)+Azz*(D145-z0) -> 6.474911963 | I145: -0.248222539 | J145: 19.38618436 | K145: 27.78659425
B146: 13.37855456 | C146: 20.29719716 | D146: 58.44166632 | F146: 7.851097639 | G146: 13.73993232 | H146: 6.984984288 | I146: -4.892147148 | J146: -0.3321815536 | K146: 27.74370832
B147: 13.72448669 | C147: 20.29995244 | D147: 58.83511462 | F147: 7.772059639 | G147: 13.74268759 | H147: 7.502887369 | I147: -7.827874896 | J147: -16.58299099 | K147: 27.71895719
B148: 14.05325998 | C148: 20.27838995 | D148: 59.25736737 | F148: 7.659926666 | G148: 13.7211251 | H148: 8.026161151 | I148: -3.989117885 | J148: 3.631133886 | K148: 27.63913804
B149: 14.36451648 | C149: 20.22918004 | D149: 59.70450823 | F149: 7.517468709 | G149: 13.6719152 | H149: 8.552014072 | I149: -0.2883124671 | J149: 18.78322912 | K149: 27.63325061
B150: 14.65774966 | C150: 20.14925713 | D150: 60.1722958 | F150: 7.347609298 | G150: 13.59199228 | H150: 9.077331769 | I150: -1.647617804 | J150: 12.92513649 | K150: 27.36884002
B151: 14.93232503 | C151: 20.0358835 | D151: 60.65616675 | F151: 7.153436291 | G151: 13.47861865 | H151: 9.598694961 | I151: -6.672484532 | J151: -10.72988296 | K151: 27.31431427
B152: 15.18750295 | C152: 19.8867136 | D152: 61.15125162 | F152: 6.938204484 | G152: 13.32944876 | H152: 10.11240701 | I152: -5.517696297 | J152: -4.627037574 | K152: 27.27984456
B153: 15.42246349 | C153: 19.69985685 | D153: 61.65240358 | F153: 6.705329532 | G153: 13.142592 | H153: 10.61453149 | I153: -5.34436847 | J153: -3.850696172 | K153: 27.23867505
B154: 15.63633316 | C154: 19.47393689 | D154: 62.15424054 | F154: 6.458372893 | G154: 12.91667205 | H154: 11.10093974 | I154: -2.927191512 | J154: 7.473407151 | K154: 27.21324748
B155: 15.82821334 | C155: 19.2081451 | D155: 62.65120039 | F155: 6.201017763 | G155: 12.65088025 | H155: 11.56736813 | I155: 1.595719848 | J155: 24.70246864 | K155: 27.18640709
B156: 15.99720993 | C156: 18.90228554 | D156: 63.13760868 | F156: 5.937036311 | G156: 12.3450207 | H156: 12.00948424 | I156: -0.542917967 | J156: 16.76695582 | K156: 27.16696876
B157: 16.14246371 | C157: 18.55680919 | D157: 63.60775728 | F157: 5.670248914 | G157: 11.99954435 | H157: 12.4229608 | I157: -2.351061008 | J157: 9.69031006 | K157: 27.12134104
B158: 16.26318098 | C158: 18.17283469 | D158: 64.05599238 | F158: 5.404476475 | G158: 11.61556984 | H158: 12.80355556 | I158: -3.353592613 | J158: 5.241470893 | K158: 27.05439419
B159: 16.35866367 | C159: 17.75215383 | D159: 64.47680901 | F159: 5.143487326 | G159: 11.19488898 | H159: 13.14719525 | I159: -4.176930135 | J159: 1.336143568 | K159: 27.05255693
B160: 16.42833818 | C160: 17.29721999 | D160: 64.86494923 | F160: 4.890940577 | G160: 10.73995515 | H160: 13.45006075 | I160: 0.111727185 | J160: 18.96354192 | K160: 27.04972386
B161: 16.47178227 | C161: 16.81111874 | D161: 65.21550046 | F161: 4.650328074 | G161: 10.25385389 | H161: 13.70867084 | I161: -2.670287033 | J161: 7.903206379 | K161: 27.01206876
B162: 16.48874909 | C162: 16.2975202 | D162: 65.52399014 | F162: 4.424917333 | G162: 9.740255357 | H162: 13.91996153 | I162: -6.829150046 | J162: -12.56408488 | K162: 26.98369189
B163: 16.47918765 | C163: 15.76061416 | D163: 65.78647291 | F163: 4.217697887 | G163: 9.203349319 | H163: 14.08135771 | I163: -3.124089821 | J163: 5.703838168 | K163: 26.90354188
B164: 16.44325897 | C164: 15.20502923 | D164: 65.9996067 | F164: 4.031333427 | G164: 8.647764383 | H164: 14.19083451 | I164: -2.386362719 | J164: 8.798729447 | K164: 26.88499479
B165: 16.38134749 | C165: 14.63573865 | D165: 66.16071436 | F165: 3.868121865 | G165: 8.078473803 | H165: 14.24696556 | I165: -6.685685716 | J165: -12.04417362 | K165: 26.8824752
B166: 16.29406704 | C166: 14.05795594 | D166: 66.26782817 | F166: 3.729965135 | G166: 7.500691096 | H166: 14.2489563 | I166: -2.898225489 | J166: 6.619607159 | K166: 26.8780788
B167: 16.18226149 | C167: 13.4770241 | D167: 66.31971539 | F167: 3.618349995 | G167: 6.919759254 | H167: 14.19666073 | I167: -2.06961505 | J167: 10.07952418 | K167: 26.87358572
B168: 16.04699962 | C168: 12.89830254 | D168: 66.31588373 | F168: 3.534340565 | G168: 6.341037699 | H168: 14.09058118 | I168: -6.578641082 | J168: -11.68333052 | K168: 26.79011741
B169: 15.88956477 | C169: 12.32705611 | D169: 66.25656693 | F169: 3.478582698 | G169: 5.769791267 | H169: 13.93185098 | I169: -1.629786647 | J169: 11.85075199 | K169: 26.77981643
B170: 15.71143933 | C170: 11.76835021 | D170: 66.14269136 | F170: 3.451319626 | G170: 5.211085359 | H170: 13.72220118 | I170: -4.841992092 | J170: -2.635380857 | K170: 26.73141995
B171: 15.51428488 | C171: 11.22695584 | D171: 65.97582555 | F171: 3.452417808 | G171: 4.669690995 | H171: 13.46391283 | I171: -3.63066953 | J171: 3.035485739 | K171: 26.65039605
B172: 15.29991843 | C172: 10.70726776 | D172: 65.75811538 | F172: 3.481401371 | G172: 4.150002916 | H172: 13.1597572 | I172: -0.6853311822 | J172: 15.0556143 | K172: 26.6489825
B173: 15.07028589 | C173: 10.21323795 | D173: 65.4922081 | F173: 3.537493224 | G173: 3.655973099 | H173: 12.81292657 | I173: -1.730614034 | J173: 10.93837658 | K173: 26.64713979
B174: 14.82743349 | C174: 9.748326025 | D174: 65.18116874 | F174: 3.619660681 | G174: 3.191061178 | H174: 12.4269586 | I174: -3.263629249 | J174: 4.441189699 | K174: 26.62785799
B175: 14.57347812 | C175: 9.31546722 | D175: 64.82839274 | F175: 3.726663412 | G175: 2.758202373 | H175: 12.00565745 | I175: -3.43044767 | J175: 3.521792565 | K175: 26.55220608
B176: 14.31057758 | C176: 8.917057504 | D176: 64.43751805 | F176: 3.857101584 | G176: 2.359792658 | H176: 11.55301454 | I176: -6.108010901 | J176: -9.643718351 | K176: 26.54545054
B177: 14.04090157 | C177: 8.554954985 | D177: 64.01234021 | F177: 4.009462306 | G177: 1.997690139 | H177: 11.07313169 | I177: 1.701934821 | J177: 23.66109223 | K177: 26.53980998
B178: 13.76660424 | C178: 8.23049584 | D178: 63.556733 | F178: 4.182162752 | G178: 1.673230994 | H178: 10.57014908 | I178: -1.32751193 | J178: 12.19235022 | K178: 26.49050377
B179: 13.48979882 | C179: 7.944522683 | D179: 63.07457681 | F179: 4.373588735 | G179: 1.387257836 | H179: 10.04817979 | I179: 2.656031247 | J179: 26.6002478 | K179: 26.37645564
B180: 13.21253502 | C180: 7.697422957 | D180: 62.56969635 | F180: 4.582127862 | G180: 1.14015811 | H180: 9.511252494 | I180: -5.514181371 | J180: -6.921240535 | K180: 26.35769051
B181: 12.93677941 | C181: 7.489174827 | D181: 62.04580871 | F181: 4.806196791 | G181: 0.9319099802 | H181: 8.963262964 | I181: 1.223172459 | J181: 21.42941334 | K181: 26.28541685
B182: 12.66439918 | C182: 7.319398072 | D182: 61.50648188 | F182: 5.044262475 | G182: 0.7621332259 | H182: 8.407934999 | I182: -4.216110862 | J182: -0.8636122298 | K182: 26.22867303
B183: 12.39714913 | C183: 7.187407642 | D183: 60.95510383 | F183: 5.294857547 | G183: 0.6301427959 | H183: 7.848790596 | I183: 1.130156695 | J183: 20.81656963 | K183: 26.20874786
B184: 12.13666205 | C184: 7.092267781 | D184: 60.39486144 | F184: 5.556590254 | G184: 0.5350029348 | H184: 7.289129053 | I184: -0.7728464791 | J184: 13.91479714 | K184: 26.19652191
B185: 11.88444234 | C185: 7.032844943 | D185: 59.82872851 | F185: 5.82814953 | G185: 0.4755800968 | H185: 6.732014312 | I185: -0.9383222995 | J185: 12.99906594 | K185: 26.1695718
B186: 11.64186247 | C186: 7.007858049 | D186: 59.25946169 | F186: 6.108305879 | G186: 0.450593203 | H186: 6.180269692 | I186: -3.484734384 | J186: 2.302504459 | K186: 26.14221171
B187: 11.41016225 | C187: 7.015924985 | D187: 58.68960317 | F187: 6.3959088 | G187: 0.4586601386 | H187: 5.63647903 | I187: 2.795343642 | J187: 26.34509704 | K187: 26.06383387
B188: 11.19045039 | C188: 7.055604562 | D188: 58.12148893 | F188: 6.689881493 | G188: 0.4983397159 | H188: 5.102993183 | I188: -3.763571404 | J188: 0.8941019017 | K188: 26.0132599
B189: 10.98370809 | C189: 7.125433464 | D189: 57.55726133 | F189: 6.98921353 | G189: 0.5681686178 | H189: 4.581940888 | I189: 0.6958982175 | J189: 18.77792106 | K189: 25.9974941
B190: 10.79079436 | C190: 7.22395794 | D190: 56.99888492 | F190: 7.292952117 | G190: 0.6666930932 | H190: 4.07524296 | I190: -3.593472837 | J190: 1.395519375 | K190: 25.96859699
B191: 10.61245254 | C191: 7.349760228 | D191: 56.44816454 | F191: 7.600192489 | G191: 0.792495382 | H191: 3.584628964 | I191: 4.102880851 | J191: 30.55751721 | K191: 25.96452368
B192: 10.44931793 | C192: 7.501479853 | D192: 55.90676473 | F192: 7.910067893 | G192: 0.944215007 | H192: 3.11165551 | I192: -5.094004201 | J192: -6.065530057 | K192: 25.87296107
B193: 10.30192602 | C193: 7.677830037 | D193: 55.37622986 | F193: 8.221739499 | G193: 1.120565191 | H193: 2.657725515 | I193: -0.4541182059 | J193: 14.20304082 | K193: 25.87172152
B194: 10.17072122 | C194: 7.877609577 | D194: 54.85800425 | F194: 8.534386527 | G194: 1.320344731 | H194: 2.224107808 | I194: 2.87288965 | J194: 26.14754384 | K194: 25.85316717
B195: 10.05606564 | C195: 8.099710556 | D195: 54.35345203 | F195: 8.84719676 | G195: 1.542445709 | H195: 1.811956624 | I195: -5.22641672 | J195: -6.845564045 | K195: 25.83433997
B196: 9.958247887 | C196: 8.343122288 | D196: 53.86387618 | F196: 9.159357582 | G196: 1.785857441 | H196: 1.422330584 | I196: 0.4011619393 | J196: 17.02729235 | K196: 25.6940483
B197: 9.877491607 | C197: 8.606931887 | D197: 53.39053662 | F197: 9.470047583 | G197: 2.04966704 | H197: 1.056210882 | I197: 1.515673257 | J197: 20.9014656 | K197: 25.61852967
B198: 9.813963621 | C198: 8.890321822 | D198: 52.93466726 | F198: 9.778428776 | G198: 2.333056976 | H198: 0.7145184407 | I198: -4.653473313 | J198: -4.776889722 | K198: 25.50121014
B199: 9.767781531 | C199: 9.192564806 | D199: 52.49749172 | F199: 10.08363939 | G199: 2.63529996 | H199: 0.3981298901 | I199: -0.02131075718 | J199: 14.94380782 | K199: 25.46359166
B200: 9.739020695 | C200: 9.513016291 | D200: 52.08023793 | F200: =Axx*(B200-x0)+Axy*(C200-y0)+Axz*(D200-z0) -> 10.38478723 | G200: =Ayx*(B200-x0)+Ayy*(C200-y0)+Ayz*(D200-z0) -> 2.955751445 | H200: 0.1078922452 | I200: -3.568078223 | J200: 0.2396806385 | K200: 25.43493599
B201: =B200+dt*s*(C200-B200) -> 9.727720475 | C201: =C200+dt*(B200*(rr-D200)-C200) -> 9.851104843 | D201: =D200+dt*(B200*C200-b*D200) -> 51.68415132 | F201: 10.68094354 | G201: 3.293839997 | H201: -0.155363793 | I201: 0.2058220509 | J201: 15.84581341 | K201: 25.38555889
B202: 9.733889693 | C202: 10.20632058 | D202: 51.31050679 | F202: 10.97113735 | G202: 3.64905573 | H202: -0.3908119688 | I202: -6.079052308 | J202: -12.92905928 | K202: 25.26366419
B203: 9.757511237 | C203: 10.57820182 | D203: 50.96061942 | F203: 11.25435026 | G203: 4.020936969 | H203: -0.5976200816 | I203: -4.119795313 | J203: -2.93405219 | K203: 25.19035341
... 3804 more rows

Sheet Image1
A1: Δt | B1: s | C1: r | D1: b
A2: 0.005 | B2: 10 | C2: 60 | D2: 3.3
A3: Waarden veranderd? Reset-knop indrukken
A23: simple spiral | B23: 12.7 | C23: 49.2 | D23: 34.4
A24: fuzzy loop | B24: 41.1 | C24: 46.5 | D24: 12.4
B25: 45.7 | C25: 47.3 | D25: 14.4
A26: clean loop | B26: 26.1 | C26: 43.2 | D26: 16.7
A27: butterfly | B27: -1.8 | C27: 7.9 | D27: 35.1
A28: nice loop | B28: 13.7 | C28: 28.4 | D28: 3.2
A29: a-symmetric loop | B29: 6.1 | C29: 47.2 | D29: 3.7
A30: strange | B30: 9 | C30: 46.6 | D30: 0.2
A31: two parts | B31: 47 | C31: 56 | D31: 7
A32: angel wings | B32: 9.7 | C32: 50.5 | D32: 12.1
A33: double angel wings | B33: 30.2 | C33: 40.8 | D33: 17.3
A34: wings | B34: -2 | C34: 16.9 | D34: 11
A35: wings multi-line | B35: -1 | C35: 33.5 | D35: 10
A36: contorted spiral | B36: 7.9 | C36: 20.7 | D36: 5.3
A37: music note | B37: 20.6 | C37: 33.2 | D37: 0.1
B38: 6 | C38: 60 | D38: 3

Sheet Image2
